Cogmind - Beta 14 @@@ ROGUE MODE // 2024.08.25 @ 00:29:25 Player: omnishade Result: Self-destructed Performance ------------- Evolutions (2) 1000 Regions Visited (3) 600 Robots Destroyed (8) 40 Value Destroyed (100) 100 Prototype IDs (0) 0 Alien Tech Used (0) 0 Bonus (0) 0 TOTAL SCORE: 1740 Bonus ------- None Cogmind --------- Core Integrity 284/550 Matter 195/300 Energy 195/300 System Corruption 2% Temperature Cool (0) Movement Core (100) Ox1 Location -8/Materials Parts ------- > --- POWER (2) -------- (None) > --- PROPULSION (3) --- (None) > --- UTILITY (4) ------ Compact Battery Structural Scanner Improved Sensor Array > --- WEAPON (2) ------- Improved Datajack > --- INVENTORY (5) ---- (None) Peak State ------------ > --- POWER ------------ Nuclear Core > --- PROPULSION ------- Flight Unit VTOL Module VTOL Module > --- UTILITY ---------- Structural Scanner Improved Sensor Array Melee Analysis Suite > --- WEAPON ----------- Mining Laser Katana > --- INVENTORY -------- Light Ion Engine VSS Leg VSS Leg Terrain Scanner Katana [Rating: 20] Favorites ----------- Power Light Ion Engine Engine Light Ion Engine Power Core Nuclear Core Propulsion Wheel Leg VSS Leg Wheel Wheel Flight Unit VTOL Module Utility Terrain Scanner Device Terrain Scanner Storage Compact Battery Processor Melee Analysis Suite Weapon Light Assault Rifle Energy Cannon Beam Cannon Ballistic Gun Light Assault Rifle Special Weapon Mining Laser Slashing Weapon Scythe Special Melee Weapon Datajack Build | -11 -10 -9 -8 ------- Run | Yrd Mat Mat Mat Slots Evolved 4 | . . 2 2 Power 1 | . . . 1 Propulsion 1 | . . . 1 Utility 2 | . . 2 . Weapon . | . . . . Parts Attached 43 | 5 6 16 16 Power 8 | 1 1 2 4 Engine 5 | 1 1 2 1 Core 3 | . . . 3 Reactor . | . . . . Propulsion 8 | 2 . 4 2 Treads . | . . . . Leg 1 | . . . 1 Wheel 4 | 2 . 2 . Hover . | . . . . Flight 3 | . . 2 1 Utility 9 | . 2 3 4 Device 7 | . 2 3 2 Storage 1 | . . . 1 Processor 1 | . . . 1 Hackware . | . . . . Protection . | . . . . Artifact . | . . . . Weapon 18 | 2 3 7 6 Energy Gun . | . . . . Energy Cannon 1 | . . 1 . Ballistic Gun 7 | 2 2 3 . Ballistic Cannon . | . . . . Launcher . | . . . . Special Weapon 2 | . . 2 . Impact Weapon . | . . . . Slashing Weapon 4 | . . . 4 Piercing Weapon . | . . . . Special Melee Weapon 4 | . 1 1 2 Unidentified Prototypes . | . . . . Parts Lost 16 | . . 11 5 Power 2 | . . 1 1 Propulsion 6 | . . 4 2 Utility 3 | . . 2 1 Weapon 5 | . . 4 1 Highest Loss Streak 6 | . . 6 4 To Critical Strikes . | . . . . Average Slot Usage (%) 62 | . 92 52 67 Engine 6 | . 14 5 6 Wheel 10 | . 28 11 . Flight 10 | . . 6 23 Device 17 | . 21 16 16 Processor 1 | . . . 7 Ballistic Gun 7 | . 25 7 . Special Weapon 2 | . . 1 6 Slashing Weapon 1 | . . . 4 Special Melee Weapon 1 | . 2 2 . Peak Build Rating 20 | 5 7 10 20 Average Rating 8 | 3 6 6 15 On Entrance 5 | . 5 7 10 Naked Turns . | . . . . Heaviest Build 12 | 6 8 11 12 Greatest Support 20 | 20 20 20 12 Greatest Overweight (x) 1 | . . 1 . Average Overweight (x) . | . . . . Largest Inventory Capacity 5 | 5 5 5 5 Average Capacity 5 | 5 5 5 5 Most Carried 5 | 3 5 5 5 Average Carried 3 | . 3 4 4 Final Capacity 5 | 5 5 5 5 Final Carried 5 | 3 4 5 . Class Distribution -------------------- 71% | Mutant 24% | Sprinter 4% | Gladiator Dominant Class ---------------- Mutant | -10/Materials Mutant | -9/Materials Sprinter | -8/Materials Resources | -11 -10 -9 -8 ----------- Run | Yrd Mat Mat Mat Matter Collected 539 | 278 54 127 80 Remotely . | . . . . Salvage Created 165 | 37 51 47 30 Parts 15 | 3 9 2 1 Haulers Intercepted . | . . . . Recyclers Shooed . | . . . . Parts Field Recycled . | . . . . Retrieved Matter . | . . . . Parts Self-Destructed . | . . . . Prevented . | . . . . Kills | -11 -10 -9 -8 ------- Run | Yrd Mat Mat Mat Combat Hostiles Destroyed 6 | 1 3 2 . Guns 4 | 1 3 . . Cannons 2 | . . 2 . Classes Destroyed 4 | 1 1 1 1 Worker 1 | . . . 1 Builder 1 | . . 1 . Swarmer 5 | . 3 2 . Grunt 1 | 1 . . . Best Kill Streak 3 | 1 3 2 1 Combat Bots Only 3 | 1 3 2 . Max Kills in Single Turn 1 | 1 1 1 1 Gunslinging . | . . . . Exploded . | . . . . Melee . | . . . . Uniques/NPCs Destroyed . | . . . . Combat | -11 -10 -9 -8 -------- Run | Yrd Mat Mat Mat Hostile Shots Fired 174 | 9 22 102 41 Missed 66 | 3 4 40 19 Damage Taken 1559 | 65 208 872 414 Core 668 | 12 29 361 266 Absorbed by Shields . | . . . . Regen/Repaired (Parts) 7 | . . 7 . Core Remaining (%) 62 | 95 83 9 . Volleys Fired 53 | 7 6 35 5 Largest 2 | 2 2 2 1 Hottest 100 | 40 40 100 100 Shots Fired 68 | 14 9 40 5 Gun 44 | 14 9 21 . Cannon 9 | . . 9 . Launcher . | . . . . Special 15 | . . 10 5 Kinetic 44 | 14 9 21 . Thermal 24 | . . 19 5 Explosive . | . . . . Electromagnetic . | . . . . Robot Hit Streak 7 | 5 4 7 . Robot Miss Streak 6 | 3 . 6 . Penetration Max . | . . . . Secondary Targets . | . . . . Shots Hit Robots 25 | 9 3 10 3 Core Hits 11 | 2 3 6 . Critical Kills . | . . . . Critical Parts Destroyed . | . . . . Critical Strikes 1 | . . . 1 Sever 1 | . . . 1 Melee Attacks 13 | . . . 13 Impact . | . . . . Slashing 6 | . . . 6 Piercing . | . . . . Sneak Attacks 1 | . . . 1 Combat Hostiles . | . . . . Follow-up Attacks . | . . . . Damage Inflicted 365 | 88 32 149 96 Guns 216 | 88 32 96 . Cannons 53 | . . 53 . Explosions . | . . . . Melee 96 | . . . 96 Ramming . | . . . . Kinetic 216 | 88 32 96 . Thermal 53 | . . 53 . Explosive . | . . . . Electromagnetic . | . . . . Impact . | . . . . Slashing 96 | . . . 96 Piercing . | . . . . Highest Corruption 2 | . . . 2 Average Corruption 2 | . . . 2 Corruption Purged . | . . . . Corruption Blocked . | . . . . Overload Shots . | . . . . Overflow Damage 25 | . . . 25 Projectiles . | . . . . Explosions . | . . . . Melee 25 | . . . 25 Knockbacks . | . . . . Impact . | . . . . Kinetic . | . . . . Secondary . | . . . . Self-Inflicted Damage . | . . . . Shots . | . . . . Rammed . | . . . . Targets Rammed . | . . . . Kicked . | . . . . Crushed . | . . . . Highest Temperature 44 | 6 18 44 22 Average Temperature 10 | 6 11 11 11 Received Heat Transfer 594 | 36 102 366 90 Siege Activations . | . . . . Robots Corrupted . | . . . . Combat Hostiles . | . . . . Parts Fried . | . . . . Impact Corruptions . | . . . . Robots Melted . | . . . . Combat Hostiles . | . . . . Parts Melted . | . . . . Heat Transferred 111 | . . 111 . Parts Sabotaged . | . . . . Parts Stolen . | . . . . Parts Stripped . | . . . . Power Chain Reactions . | . . . . Alert | -11 -10 -9 -8 ------- Run | Yrd Mat Mat Mat Peak Influence 454 | 20 128 454 391 Initial 191 | . 13 53 191 Average 147 | 3 57 146 229 Maximum Alert Level 2 | . . 2 1 Low Security (%) 73 | 100 100 70 60 Level 1 22 | . . 22 39 Level 2 4 | . . 7 . Level 3 . | . . . . Level 4 . | . . . . Level 5 . | . . . . High Security . | . . . . Max Security . | . . . . Squads Dispatched 3 | . . . 3 Investigation . | . . . . Extermination . | . . . . Reinforcement 3 | . . . 3 Assault . | . . . . Garrison . | . . . . Intercept . | . . . . Searches Triggered . | . . . . Construction Impeded . | . . . . Haulers Reinforced . | . . . . Active Scanning Responses . | . . . . Cargo Convoy Interrupts . | . . . . Stealth | -11 -10 -9 -8 --------- Run | Yrd Mat Mat Mat Distress Signals 2 | . . 2 . Communications Jammed . | . . . . Distress Signals . | . . . . Times Spotted 62 | 1 8 33 20 Peak Tracking Total 16 | 1 4 12 16 Tactical Retreats 12 | . 1 9 2 Traps | -11 -10 -9 -8 ------- Run | Yrd Mat Mat Mat Traps Triggered 1 | . . 1 . Indirectly . | . . . . Trap Hack Attempts . | . . . . Triggered . | . . . . Disarmed . | . . . . Reprogrammed . | . . . . Reused . | . . . . Traps Extracted . | . . . . Installed . | . . . . Triggered . | . . . . Machines | -11 -10 -9 -8 ---------- Run | Yrd Mat Mat Mat Machines Disabled 1 | . . 1 . Max in Single Turn 1 | . . 1 . Machines Repaired . | . . . . Machines Dismantled . | . . . . Machines Sabotaged . | . . . . Overloaded Fab Kills . | . . . . Hacking | -11 -10 -9 -8 --------- Run | Yrd Mat Mat Mat Machines Accessed 2 | . . 2 . Terminals . | . . . . Fabricators . | . . . . Repair Stations 1 | . . 1 . Recycling Units 1 | . . 1 . Scanalyzers . | . . . . Garrison Access . | . . . . Total Hacks 4 | . . 4 . Successful 3 | . . 3 . Failed 1 | . . 1 . Catastrophic . | . . . . Database Lockouts . | . . . . Manual . | . . . . Terminals . | . . . . Fabricators . | . . . . Repair Stations 3 | . . 3 . Recycling Units 1 | . . 1 . Scanalyzers . | . . . . Garrison Access . | . . . . Terminal Hacks . | . . . . Fabricator Hacks . | . . . . Repair Station Hacks 2 | . . 2 . Scan Component 1 | . . 1 . Repair 1 | . . 1 . Recycling Unit Hacks 1 | . . 1 . Report Inventory 1 | . . 1 . Scanalyzer . | . . . . Garrison Access Hacks . | . . . . Unauthorized Hacks . | . . . . Terminals . | . . . . Fabricators . | . . . . Repair Stations . | . . . . Recycling Units . | . . . . Scanalyzers . | . . . . Garrison Access . | . . . . Data Cores Recovered . | . . . . Used . | . . . . Hacking Detections 1 | . . 1 . Full Trace Events 1 | . . 1 . Feedback Events . | . . . . Feedback Blocked . | . . . . Robot Schematics Acquired . | . . . . Robots Built . | . . . . Authchips . | . . . . Time . | . . . . Total Robot Build Rating . | . . . . Part Schematics Acquired . | . . . . Parts Built . | . . . . Authchips . | . . . . Time . | . . . . Total Part Build Rating . | . . . . Parts Repaired 1 | . . 1 . Time 26 | . . 26 . Parts Recycled . | . . . . Recycled Matter . | . . . . Retrieved Matter . | . . . . Retrieved Components . | . . . . Parts Scanalyzed . | . . . . Part Schematics Acquired . | . . . . Parts Damaged . | . . . . Bothacking | -11 -10 -9 -8 ------------ Run | Yrd Mat Mat Mat Used RIF Installer . | . . . . Robots Hacked 1 | . . . 1 Non-combat . | . . . . Combat 1 | . . . 1 Robot Hacks Applied 1 | . . . 1 parse_system 1 | . . . 1 Relay Couplers Released . | . . . . Fabnet Peak Effective % . | . . . . Robots Rewired . | . . . . Allies Hacked . | . . . . Hacks Repelled . | . . . . Allies | -11 -10 -9 -8 -------- Run | Yrd Mat Mat Mat Total Allies . | . . . . Largest Group . | . . . . Highest-Rated Group . | . . . . Highest-Rated Ally . | . . . . Total Orders . | . . . . Ally Attacks . | . . . . Total Damage . | . . . . Kills . | . . . . Allies Corrupted . | . . . . Allies Melted . | . . . . Intel | -11 -10 -9 -8 ------- Run | Yrd Mat Mat Mat Robot Analysis Total . | . . . . Derelict Logs Recovered . | . . . . Drone Launches . | . . . . Drone Recoveries . | . . . . Exploration | -11 -10 -9 -8 ------------- Run | Yrd Mat Mat Mat Turns Passed 1639 | 81 220 939 399 Spaces Moved 1813 | 68 158 1096 491 Core 33 | 19 . 8 6 Treads . | . . . . Legs 1 | . . . 1 Wheels 667 | 49 158 460 . Hover . | . . . . Flight 1112 | . . 628 484 Fastest Speed 30 | 50 80 32 30 Average Speed 50 | 71 80 53 31 Slowest Speed 95 | 80 80 95 90 Overloaded Moves . | . . . . Propulsion Burnouts . | . . . . Robots Hopped 4 | . . 3 1 Cave-ins Triggered . | . . . . Exploration Rate (%) 28 | 5 28 51 30 Regions Visited 3 Branch Regions . Pre-discovered Areas . | . . . . Known Exits Taken . | . . . . Unknown Exits Taken 3 | 1 1 1 . Scrap Searched . | . . . . Spaces Dug 9 | . . 4 5 Terrain Destroyed 9 | . . 4 5 Melee . | . . . . Projectile 9 | . . 4 5 AOE . | . . . . Terrain Rammed . | . . . . Walls Destroyed . | . . . . Machines Disabled . | . . . . Actions | -11 -10 -9 -8 --------- Run | Yrd Mat Mat Mat Total 2440 | 87 243 1399 711 Wait 474 | . 66 234 174 Move 1802 | 67 157 1089 489 Hop 4 | . . 3 1 Pick Up 33 | 8 5 15 5 Fast Attach 9 | . . 4 5 Attach 22 | 5 3 7 7 Detach 2 | . 1 . 1 Swap 12 | . 3 5 4 Drop 16 | . 2 7 7 Fire 53 | 7 6 35 5 Melee 13 | . . . 13 Ram . | . . . . Kick . | . . . . Crush . | . . . . Escape Stasis . | . . . . Rewire . | . . . . Trap . | . . . . Miscellaneous . | . . . . Route ------- -11/Scrapyard -10/Materials -9/Materials -8/Materials History --------- Turn | Location | Event 2 | -11/Scrapyard | Met Revision 17 46 | -11/Scrapyard | Discovered new exit (range 8) 82 | -11/Scrapyard | Entered Materials 290 | -10/Materials | Discovered new exit (range 16) 302 | -10/Materials | Entered another Materials area 302 | -9/Materials | Evolved 2 slots: Utility x2 304 | -9/Materials | Build established: Mutant 352 | -9/Materials | Repaired Datajack 594 | -9/Materials | Lost 3 parts (1n1u1w) 784 | -9/Materials | Core integrity fell below 50% 793 | -9/Materials | Discovered new exit (range 15) 812 | -9/Materials | Lost 6 parts (1p2n3w) 1216 | -9/Materials | Core integrity fell below 20% 1241 | -9/Materials | Entered another Materials area 1241 | -8/Materials | Evolved 2 slots: Power x1, Propulsion x1 1507 | -8/Materials | Build established: Sprinter 1640 | -8/Materials | Self-destructed Last Messages --------------- System corrupted by crushing effect (+2). Lgt. Ion Engine destroyed. VTOL Module severed. T-07 Excavator is excavating. Scythe severed. T-07 Excavator is excavating. Flight Unit destroyed. Sneak attack on K-01 Serf. Destroyed Wheel. K-01 Serf destroyed. Extracted 50 matter. VSS Leg severed. K-01 Serf collects debris. C-17 Slicer Surge Thruster severed. Acquired 30 matter. Scythe severed. Jacked C-17 Slicer... >>parse_system Reading system data... Nuclear Core severed. Map ----- +----------------------------------------------------+ | ?????????????????????????????????????????????????? | | ?????????????????????????????????????????????????? | | ?????????????????????????????????????????????????? | | ???????????????????????????????? # ????????????? | | ???????????????????????????????? # ????????????? | | ??????????????????????????????? # ???????????## | | ???????????????????????????????### ???????????## | | ??????????????????????????????? ???????????## | | ????????????????????????????????? ??????????### | | ???????????????????????????????? ##????? ##### | | ????????????????????????????????## ##????? #### | | ???????????????????????????????? # ##????? | | ???????????????????????????????? # ##???????? | | ???????????????????????????????? + T#???? ?? | | ????????? ?#############??????? # ##???? ##??# | | ???????? ############??????? # ###### ###?## | | ???????? ? ##??????? # ######+###?## | | ????????? T ? ##?????#### /# ##### | | ?????????????? ##?????####??=# ##### | | ??????????????????## ##?????## # ^# ## | | ?????????###########? ##?????## + | | ?????????########### ? ##?????#? #?? # ### | | ?????????## #### ##???###### ############# | | ?????????## ########### ### ## | | ?????????## T u####### # ##= """ ## | | ?????????## c@c !YgY ## """ ## | | ########### ################ # """ + | | ############ ################ ? ## !! # | | # # ##???## ? ## ! """ + | | # # ########## ### """ # | | + + """ ########## ###! """ # | | # # """""##! // # ## # | | # # """""## ] # #######+### | | ############ # """""## + ?T | | ############ # """ ## "T" #? ###### | | ???##] # # ## """ # ###### """ | | ???## # # #" ### ######## """ | | ???## + ############ #######+######"" """ | | ???## "" # ############### ####"" | | ?#### S"" # ##????????##### ####"T | | #####! "" # ##???????????## ####"" """ | | ### ######## ##???????????## ####"" """ | | ! # # ##???????????## [[[ ###### """ | | # # ##???????????## [[[=+ | | # """ + ##???????????## [[[ # | | # """ # ##???????????## # #### | | [ ] # """ # ##???????????## # ## | | / # # ##???????????########### ## " | | #############???????????########### + " | | #################???????????????####### ## " | +----------------------------------------------------+ Best States ------------- Heat Dissipation 38 Energy Generation 14 Energy Capacity 300 Matter Stores 300 Matter Capacity 300 Sight Range 16 Robot Scan Range 15 Terrain Scan Range 14 Terrain Scan Density 10 Evasion (%) 64 Melee Accuracy 5 Item Schematics ----------------- None Robot Schematics ------------------ None Fabricated ------------ Nothing Alien Tech Used ----------------- None Achievements -------------- Slippery One Challenges ------------ None Game ------ Seed AntimissileCooledRifle Manual? 0 Play Time 00:31:02 Cumulative 2.0 hours Start 2024.08.25 @ 00:01:40 End 2024.08.25 @ 00:29:25 Sessions 1 Manual Loads 0 Difficulty Rogue Special Mode None Game No. 3 Rogue 3 Adventurer 0 Explorer 0 Win Type - Total 0 Types 0/0/0/0/0/0/0/0/0 Lore% 0 Gallery% 6 Achievement% 6 Wizard Run 0 Options --------- Layout 1 ASCII 0 Keyboard 0 Movement Mouse Keybinds 0 Fullscreen 1 Font 32/SmallcapsGlow Map View 50x35 Zoom Use 0% Tactical HUD 0 Map Filters NONE Filters NONE Steam 1 RUN: 51ed97f3-82f1-4caa-82b4-e625ec6e1491